fUSD/lending_fUSD_20260621
["ID","MTS","AMOUNT","RATE_DAILY","PERIOD"]
[425853112,1782000639000,-523.94,0.00014999,2]
[425853111,1782000639000,-500.0,0.00014999,2]
[425853114,1782000639000,-500.0,0.00014999,2]
[425853113,1782000639000,-500.0,0.00014999,2]
[425853115,1782000639000,-500.0,0.00014999,2]
[425853116,1782000639000,-500.0,0.00014999,2]
[425853117,1782000639000,-500.0,0.00014999,2]
[425853121,1782000639000,-500.0,0.00014999,2]
[425853119,1782000639000,-500.0,0.00014999,2]
[425853118,1782000639000,-500.0,0.00014999,2]
[425853120,1782000639000,-500.0,0.00014999,2]
[425853122,1782000639000,-500.0,0.00014999,2]
[425853125,1782000639000,-8111.73007846,0.00015,2]
[425853126,1782000639000,-345864.24222652,0.00015,2]
[425853124,1782000639000,-783164.83535892,0.00015,2]
[425853127,1782000639000,-2321265.86923555,0.00015,2]
[425853109,1782000639000,-633.53184881,0.00014999,2]
[425853104,1782000639000,-633.43,0.00014999,2]
[425853105,1782000639000,-633.43,0.00014999,2]
[425853100,1782000639000,-633.43,0.00014999,2]
[425853085,1782000639000,-500.0,0.00014999,2]
[425853082,1782000639000,-389.79,0.00014991,2]
[425853123,1782000639000,-302.0,0.00015,5]
[425853087,1782000639000,-488.37335289,0.00014999,2]
[425853086,1782000639000,-500.0,0.00014999,2]
[425853088,1782000639000,-633.43,0.00014999,2]
[425853089,1782000639000,-633.43,0.00014999,2]
[425853090,1782000639000,-633.43,0.00014999,2]
[425853106,1782000639000,-633.43,0.00014999,2]
[425853092,1782000639000,-633.43,0.00014999,2]
[425853093,1782000639000,-633.43,0.00014999,2]
[425853095,1782000639000,-633.43,0.00014999,2]
[425853094,1782000639000,-633.43,0.00014999,2]
[425853096,1782000639000,-633.43,0.00014999,2]
[425853098,1782000639000,-633.43,0.00014999,2]
[425853097,1782000639000,-633.43,0.00014999,2]
[425853099,1782000639000,-633.43,0.00014999,2]
[425853101,1782000639000,-633.43,0.00014999,2]
[425853103,1782000639000,-633.43,0.00014999,2]
[425853102,1782000639000,-633.43,0.00014999,2]
[425853091,1782000639000,-633.43,0.00014999,2]
[425853081,1782000639000,-220.70382879,0.0001499,2]
[425853135,1782000643000,-52134.63435946,0.00015,2]
[425853134,1782000643000,-61.10209198,0.00015,2]
[425853140,1782000646000,-365.89349521,0.00015,2]
[425853142,1782000731000,400.0,0.000144,10]
[425853143,1782000804000,200.0,0.00013,2]
[425853144,1782000811000,10000.0,0.00022,30]
[425853145,1782000845000,-160.0,0.00013499,2]
[425853146,1782000877000,340.0,0.0001188,2]
[425853147,1782000898000,-340.0,0.00013344,2]
[425853148,1782000900000,200.0,0.00013,2]
[425853149,1782000952000,-150.0,0.00013498,2]
[425853150,1782001006000,-151.0,0.00013498,2]
[425853151,1782001059000,-500.0,0.00013497,2]
[425853154,1782001112000,-500.0,0.00013497,2]
[425853155,1782001165000,-152.0,0.00013497,2]
[425853156,1782001220000,-153.0,0.00013497,2]
[425853157,1782001273000,-151.0,0.00013497,2]
[425853158,1782001326000,-151.0,0.00013442,2]
[425853159,1782001559000,266.0,0.00023,120]
[425853160,1782001586000,-500.0,0.00013223,2]
[425853162,1782001595000,166.66,0.00012763,2]
[425853161,1782001595000,166.66,0.000125,2]
[425853163,1782001615000,256.48,0.00012992,2]
[425853164,1782001640000,-166.66,0.00013026,2]
[425853165,1782001693000,-500.0,0.00013222,2]
[425853166,1782001746000,-500.0,0.00013221,2]
[425853167,1782001773000,9154.47,0.00012719,2]
[425853168,1782001799000,-500.0,0.00013221,2]
[425853171,1782001825000,379.17,0.00012977,2]
[425853170,1782001825000,379.17,0.0001266,2]
[425853189,1782001831000,-245.18364591,0.00013223,2]
[425853187,1782001831000,-254.81635409,0.00013223,2]
[425853191,1782001831000,-176.50525957,0.00013223,2]
[425853196,1782001831000,-500.0,0.00013223,2]
[425853192,1782001831000,-500.0,0.00013223,2]
[425853195,1782001831000,-500.0,0.00013223,2]
[425853193,1782001831000,-385.29139752,0.00013223,2]
[425853198,1782001831000,-500.0,0.00013223,2]
[425853186,1782001831000,-500.0,0.00013223,2]
[425853194,1782001831000,-114.70860248,0.00013223,2]
[425853184,1782001831000,-151.0,0.00013221,2]
[425853176,1782001831000,-129.68473283,0.00013221,2]
[425853185,1782001831000,-201.0,0.00013222,2]
[425853181,1782001831000,-77.45336202,0.00013221,2]
[425853183,1782001831000,-150.0,0.00013221,2]
[425853178,1782001831000,-500.0,0.00013221,2]
[425853180,1782001831000,-82.54663798,0.00013221,2]
[425853179,1782001831000,-304.37809485,0.00013221,2]
[425853200,1782001831000,-500.0,0.00013223,2]
[425853177,1782001831000,-370.31526717,0.00013221,2]
[425853175,1782001831000,-500.0,0.00013221,2]
[425853174,1782001831000,-500.0,0.00013221,2]
[425853182,1782001831000,-160.0,0.00013221,2]
[425853205,1782001831000,-423.98012996,0.00013223,2]
[425853234,1782001831000,-500.0,0.00013223,2]
[425853207,1782001831000,-395.19918694,0.00013223,2]
[425853203,1782001831000,-76.01987004,0.00013223,2]
[425853236,1782001831000,-500.0,0.00013223,2]
[425853238,1782001831000,-500.0,0.00013223,2]
[425853239,1782001831000,-500.0,0.00013223,2]
[425853237,1782001831000,-500.0,0.00013223,2]
[425853233,1782001831000,-500.0,0.00013223,2]
[425853232,1782001831000,-500.0,0.00013223,2]
[425853235,1782001831000,-500.0,0.00013223,2]
[425853231,1782001831000,-500.0,0.00013223,2]
[425853228,1782001831000,-500.0,0.00013223,2]
[425853229,1782001831000,-500.0,0.00013223,2]
[425853230,1782001831000,-500.0,0.00013223,2]
[425853224,1782001831000,-187.46172409,0.00013223,2]
[425853226,1782001831000,-500.0,0.00013223,2]
[425853222,1782001831000,-500.0,0.00013223,2]
[425853216,1782001831000,-314.07561286,0.00013223,2]
[425853218,1782001831000,-500.0,0.00013223,2]
[425853220,1782001831000,-500.0,0.00013223,2]
[425853210,1782001831000,-262.78438714,0.00013223,2]
[425853214,1782001831000,-185.92438714,0.00013223,2]
[425853212,1782001831000,-237.21561286,0.00013223,2]
[425853209,1782001831000,-104.80081306,0.00013223,2]
[425853227,1782001831000,-500.0,0.00013223,2]
[425853278,1782001832000,-150.0,0.00013224,2]
[425853279,1782001832000,-151.0,0.00013224,2]
[425853276,1782001832000,-153.0,0.00013224,2]
[425853277,1782001832000,-151.0,0.00013224,2]
[425853274,1782001832000,-152.0,0.00013224,2]
[425853270,1782001832000,-500.0,0.00013224,2]
[425853272,1782001832000,-150.0,0.00013224,2]
[425853273,1782001832000,-152.0,0.00013224,2]
[425853267,1782001832000,-150.0,0.00013224,2]
[425853281,1782001832000,-151.0,0.00013225,2]
[425853275,1782001832000,-151.0,0.00013224,2]
[425853282,1782001832000,-500.0,0.00013225,2]
[425853294,1782001832000,-150.0,0.00013225,2]
[425853284,1782001832000,-150.0,0.00013225,2]
[425853283,1782001832000,-605.67,0.00013225,2]
[425853285,1782001832000,-150.0,0.00013225,2]
[425853286,1782001832000,-150.0,0.00013225,2]
[425853287,1782001832000,-150.0,0.00013225,2]
[425853288,1782001832000,-194.0,0.00013225,2]
[425853289,1782001832000,-150.0,0.00013225,2]
[425853291,1782001832000,-191.54990479,0.00013225,2]
[425853290,1782001832000,-150.0,0.00013225,2]
[425853292,1782001832000,-150.0,0.00013225,2]
[425853269,1782001832000,-234.0,0.00013224,2]
[425853293,1782001832000,-150.0,0.00013225,2]
[425853280,1782001832000,-151.0,0.00013225,2]
[425853268,1782001832000,-500.0,0.00013224,2]
[425853256,1782001832000,-150.0,0.00013223,2]
[425853265,1782001832000,-150.0,0.00013224,2]
[425853240,1782001832000,-500.0,0.00013223,2]
[425853242,1782001832000,-500.0,0.00013223,2]
[425853246,1782001832000,-500.0,0.00013223,2]
[425853241,1782001832000,-500.0,0.00013223,2]
[425853245,1782001832000,-500.0,0.00013223,2]
[425853244,1782001832000,-500.0,0.00013223,2]
[425853243,1782001832000,-500.0,0.00013223,2]
[425853248,1782001832000,-500.0,0.00013223,2]
[425853247,1782001832000,-500.0,0.00013223,2]
[425853250,1782001832000,-500.0,0.00013223,2]
[425853252,1782001832000,-376.0,0.00013223,2]
[425853249,1782001832000,-500.0,0.00013223,2]
[425853271,1782001832000,-250.0,0.00013224,2]
[425853251,1782001832000,-500.0,0.00013223,2]
[425853255,1782001832000,-150.0,0.00013223,2]
[425853254,1782001832000,-151.0,0.00013223,2]
[425853257,1782001832000,-151.0,0.00013223,2]
[425853296,1782001832000,-150.0,0.00013225,2]
[425853258,1782001832000,-151.0,0.00013223,2]
[425853260,1782001832000,-152.0,0.00013223,2]
[425853259,1782001832000,-151.0,0.00013223,2]
[425853262,1782001832000,-150.0,0.00013224,2]
[425853263,1782001832000,-150.0,0.00013224,2]
[425853264,1782001832000,-500.0,0.00013224,2]
[425853261,1782001832000,-150.0,0.00013224,2]
[425853266,1782001832000,-500.0,0.00013224,2]
[425853253,1782001832000,-169.2334767,0.00013223,2]
[425853297,1782001832000,-150.0,0.00013225,2]
[425853295,1782001832000,-150.0,0.00013225,2]
[425853299,1782001832000,-225.0,0.00013225,2]
[425853332,1782001832000,-321.0,0.00013499,2]
[425853333,1782001832000,-318.0,0.00013499,2]
[425853331,1782001832000,-151.0,0.00013499,2]
[425853334,1782001832000,-317.0,0.00013499,2]
[425853335,1782001832000,-150.0,0.00013499,2]
[425853336,1782001832000,-150.0,0.00013499,2]
[425853337,1782001832000,-150.0,0.00013499,2]
[425853338,1782001832000,-309.0,0.00013499,2]
[425853339,1782001832000,-318.0,0.00013499,2]
[425853340,1782001832000,-315.0,0.00013499,2]
[425853341,1782001832000,-310.0,0.00013499,2]
[425853298,1782001832000,-150.0,0.00013225,2]
[425853330,1782001832000,-316.0,0.00013499,2]
[425853342,1782001832000,-226.37620566,0.00013499,2]
[425853345,1782001832000,-311.0,0.00013499,2]
[425853344,1782001832000,-316.0,0.00013499,2]
[425853347,1782001832000,-151.0,0.00013499,2]
[425853349,1782001832000,-311.0,0.00013499,2]
[425853348,1782001832000,-321.0,0.00013499,2]
[425853350,1782001832000,-152.0,0.00013499,2]
[425853352,1782001832000,-314.0,0.00013499,2]
[425853353,1782001832000,-150.0,0.00013499,2]
[425853351,1782001832000,-318.0,0.00013499,2]
[425853355,1782001832000,-150.0,0.00013499,2]
[425853354,1782001832000,-316.0,0.00013499,2]
[425853356,1782001832000,-317.0,0.00013499,2]
[425853346,1782001832000,-316.0,0.00013499,2]
[425853327,1782001832000,-151.0,0.00013499,2]
[425853343,1782001832000,-151.0,0.00013499,2]
[425853329,1782001832000,-150.0,0.00013499,2]
[425853328,1782001832000,-152.0,0.00013499,2]
[425853301,1782001832000,-500.0,0.00013227,2]
[425853300,1782001832000,-200.0,0.00013225,2]
[425853304,1782001832000,-379.17,0.00013293,2]
[425853306,1782001832000,-152.0,0.00013442,2]
[425853302,1782001832000,-216.28381402,0.00013228,2]
[425853303,1782001832000,-166.66,0.00013289,2]
[425853305,1782001832000,-151.0,0.00013442,2]
[425853310,1782001832000,-150.0,0.00013497,2]
[425853309,1782001832000,-151.0,0.00013497,2]
[425853311,1782001832000,-151.0,0.00013497,2]
[425853308,1782001832000,-313.58,0.00013442,2]
[425853314,1782001832000,-151.0,0.00013497,2]
[425853307,1782001832000,-151.0,0.00013442,2]
[425853313,1782001832000,-151.0,0.00013497,2]
[425853312,1782001832000,-151.0,0.00013497,2]
[425853325,1782001832000,-151.0,0.00013498,2]
[425853324,1782001832000,-153.0,0.00013498,2]
[425853322,1782001832000,-151.0,0.00013497,2]
[425853323,1782001832000,-153.0,0.00013498,2]
[425853321,1782001832000,-152.0,0.00013497,2]
[425853326,1782001832000,-153.0,0.00013498,2]
[425853318,1782001832000,-151.0,0.00013497,2]
[425853319,1782001832000,-150.0,0.00013497,2]
[425853316,1782001832000,-151.0,0.00013497,2]
[425853317,1782001832000,-151.0,0.00013497,2]
[425853315,1782001832000,-152.0,0.00013497,2]
[425853320,1782001832000,-152.0,0.00013497,2]
[425853399,1782001833000,-207628.3328867,0.00014664,2]
[425853396,1782001833000,-183.22699459,0.00014275,2]
[425853397,1782001833000,-2161.79463485,0.00014564,2]
[425853394,1782001833000,-500.0,0.00014086,2]
[425853395,1782001833000,-177.71,0.00014127,2]
[425853389,1782001833000,-250.0,0.00014,2]
[425853391,1782001833000,-500.0,0.00014086,2]
[425853392,1782001833000,-500.0,0.00014086,2]
[425853390,1782001833000,-250.0,0.00014023,2]
[425853387,1782001833000,-500.0,0.00013989,2]
[425853398,1782001833000,-4183.0044,0.00014564,2]
[425853393,1782001833000,-500.0,0.00014086,2]
[425853400,1782001833000,-4008.8907924,0.00014664,2]
[425853383,1782001833000,-121557.42286287,0.00013986,2]
[425853402,1782001833000,-348.86955409,0.00014759,2]
[425853405,1782001833000,-800.0,0.000148,5]
[425853404,1782001833000,-420.0,0.00014798,2]
[425853403,1782001833000,-1463.08483091,0.00014787,2]
[425853406,1782001833000,-420.0,0.00014816,2]
[425853407,1782001833000,-259.25926,0.0001485,2]
[425853410,1782001833000,-200.0,0.0001488,2]
[425853408,1782001833000,-200.0,0.00014879,2]
[425853409,1782001833000,-200.0,0.0001488,2]
[425853412,1782001833000,-500.0,0.00014893,2]
[425853413,1782001833000,-200.26644326,0.000149,2]
[425853411,1782001833000,-420.0,0.00014885,2]
[425853401,1782001833000,-2161.79463483,0.00014732,2]
[425853385,1782001833000,-171931.86043935,0.00013986,2]
[425853415,1782001833000,-368.16636554,0.000149,2]
[425853386,1782001833000,-500.0,0.00013989,2]
[425853357,1782001833000,-320.0,0.00013499,2]
[425853360,1782001833000,-312.0,0.00013499,2]
[425853359,1782001833000,-311.0,0.00013499,2]
[425853361,1782001833000,-152.0,0.00013499,2]
[425853362,1782001833000,-349.21764915,0.00013499,2]
[425853364,1782001833000,-166.66,0.00013553,2]
[425853365,1782001833000,-379.17,0.0001361,2]
[425853366,1782001833000,-1973.41,0.00013627,2]
[425853363,1782001833000,-160.0,0.00013509,2]
[425853368,1782001833000,-500.0,0.00013698,2]
[425853367,1782001833000,-170.27,0.00013672,2]
[425853371,1782001833000,-500.0,0.00013698,2]
[425853388,1782001833000,-18855.14705277,0.0001399,2]
[425853369,1782001833000,-500.0,0.00013698,2]
[425853373,1782001833000,-500.0,0.00013699,2]
[425853377,1782001833000,-654.47,0.00013768,2]
[425853376,1782001833000,-150.0,0.00013737,2]
[425853375,1782001833000,-176.0,0.00013699,2]
[425853374,1782001833000,-500.0,0.00013699,2]
[425853378,1782001833000,-166.66,0.00013816,2]
[425853372,1782001833000,-200.0,0.00013699,2]
[425853380,1782001833000,-379.17,0.00013926,2]
[425853379,1782001833000,-6438.24337043,0.00013889,2]
[425853382,1782001833000,-27910.9281491,0.00013986,2]
[425853381,1782001833000,-347569.29124958,0.00013986,2]
[425853384,1782001833000,-1336.5637991,0.00013986,2]
[425853370,1782001833000,-500.0,0.00013698,2]
[425853414,1782001833000,-49644.4670294,0.000149,2]
[425853358,1782001833000,-150.0,0.00013499,2]
[425853418,1782001833000,-500.0,0.00014937,2]
[425853446,1782001833000,-500.0,0.00014999,2]
[425853451,1782001833000,-500.0,0.00014999,2]
[425853450,1782001833000,-500.0,0.00014999,2]
[425853454,1782001833000,-500.0,0.00014999,2]
[425853453,1782001833000,-500.0,0.00014999,2]
[425853452,1782001833000,-500.0,0.00014999,2]
[425853455,1782001833000,-500.0,0.00014999,2]
[425853457,1782001833000,-500.0,0.00014999,2]
[425853456,1782001833000,-500.0,0.00014999,2]
[425853459,1782001833000,-500.0,0.00014999,2]
[425853458,1782001833000,-500.0,0.00014999,2]
[425853461,1782001833000,-500.0,0.00014999,2]
[425853445,1782001833000,-500.0,0.00014999,2]
[425853460,1782001833000,-500.0,0.00014999,2]
[425853464,1782001833000,-500.0,0.00014999,2]
[425853462,1782001833000,-504.82098187,0.00014999,2]
[425853465,1782001833000,-500.0,0.00014999,2]
[425853466,1782001833000,-500.0,0.00014999,2]
[425853468,1782001833000,-500.0,0.00014999,2]
[425853471,1782001833000,-500.0,0.00014999,2]
[425853470,1782001833000,-500.0,0.00014999,2]
[425853469,1782001833000,-500.0,0.00014999,2]
[425853467,1782001833000,-500.0,0.00014999,2]
[425853472,1782001833000,-500.0,0.00014999,2]
[425853473,1782001833000,-500.0,0.00014999,2]
[425853417,1782001833000,-2161.79463483,0.000149,2]
[425853463,1782001833000,-500.0,0.00014999,2]
[425853448,1782001833000,-500.0,0.00014999,2]
[425853474,1782001833000,-500.0,0.00014999,2]
[425853447,1782001833000,-500.0,0.00014999,2]
[425853416,1782001833000,-1700.0,0.000149,5]
[425853420,1782001833000,-500.0,0.00014967,2]
[425853419,1782001833000,-500.0,0.00014937,2]
[425853422,1782001833000,-500.0,0.00014967,2]
[425853421,1782001833000,-500.0,0.00014967,2]
[425853425,1782001833000,-500.0,0.00014967,2]
[425853423,1782001833000,-504.32126104,0.00014967,2]
[425853449,1782001833000,-419.118,0.00014999,2]
[425853427,1782001833000,-500.0,0.00014967,2]
[425853426,1782001833000,-500.0,0.00014967,2]
[425853429,1782001833000,-420.0,0.00014998,2]
[425853428,1782001833000,-500.0,0.00014985,2]
[425853430,1782001833000,-500.0,0.00014999,2]
[425853424,1782001833000,-500.0,0.00014967,2]
[425853431,1782001833000,-500.0,0.00014999,2]
[425853443,1782001833000,-500.0,0.00014999,2]
[425853432,1782001833000,-500.0,0.00014999,2]
[425853444,1782001833000,-500.0,0.00014999,2]
[425853442,1782001833000,-500.0,0.00014999,2]
[425853440,1782001833000,-500.0,0.00014999,2]
[425853438,1782001833000,-500.0,0.00014999,2]
[425853441,1782001833000,-500.0,0.00014999,2]
[425853436,1782001833000,-500.0,0.00014999,2]
[425853435,1782001833000,-500.0,0.00014999,2]
[425853437,1782001833000,-500.0,0.00014999,2]
[425853434,1782001833000,-500.0,0.00014999,2]
[425853433,1782001833000,-500.0,0.00014999,2]
[425853439,1782001833000,-500.0,0.00014999,2]
[425853513,1782001834000,-500.0,0.00016999,2]
[425853512,1782001834000,-1555.5,0.00016728,2]
[425853515,1782001834000,-516.81714277,0.00017055,2]
[425853511,1782001834000,-49644.46702934,0.00016678,2]
[425853509,1782001834000,-212.34,0.000166,2]
[425853503,1782001834000,-1500.0,0.0001618,2]
[425853510,1782001834000,-736.14,0.000166,2]
[425853506,1782001834000,-345.44674642,0.00016438,2]
[425853507,1782001834000,-225.15,0.00016438,2]
[425853504,1782001834000,-798.29,0.00016438,2]
[425853508,1782001834000,-849.39,0.000166,2]
[425853514,1782001834000,-516.81714277,0.00017,2]
[425853525,1782001834000,-516.81714277,0.0001757,2]
[425853518,1782001834000,-654.47,0.0001721,2]
[425853517,1782001834000,-516.81714277,0.00017198,2]
[425853521,1782001834000,-595.30862539,0.00017285,2]
[425853520,1782001834000,-1500.0,0.00017276,2]
[425853519,1782001834000,-516.81714277,0.00017274,2]
[425853522,1782001834000,-595.30862539,0.00017294,2]
[425853524,1782001834000,-173.07,0.00017508,2]
[425853523,1782001834000,-516.81714277,0.00017312,2]
[425853526,1782001834000,-1583.56008258,0.000176,2]
[425853527,1782001834000,-399.99999999,0.000176,2]
[425853528,1782001834000,-6438.24337039,0.00017648,2]
[425853502,1782001834000,-400.41255974,0.00016043,7]
[425853516,1782001834000,-170.27,0.0001709,2]
[425853505,1782001834000,-500.0,0.00016438,2]
[425853489,1782001834000,-304.0,0.00015,5]
[425853501,1782001834000,-157.35096389,0.00016,2]
[425853530,1782001834000,-399.99999999,0.000178,2]
[425853475,1782001834000,-500.0,0.00014999,2]
[425853476,1782001834000,-500.0,0.00014999,2]
[425853478,1782001834000,-500.0,0.00014999,2]
[425853477,1782001834000,-500.0,0.00014999,2]
[425853479,1782001834000,-500.0,0.00014999,2]
[425853481,1782001834000,-500.0,0.00014999,2]
[425853480,1782001834000,-500.0,0.00014999,2]
[425853483,1782001834000,-500.0,0.00014999,2]
[425853482,1782001834000,-416.16573679,0.00014999,2]
[425853485,1782001834000,-500.0,0.00014999,2]
[425853484,1782001834000,-296.6070959,0.00014999,2]
[425853486,1782001834000,-500.0,0.00014999,2]
[425853487,1782001834000,-500.0,0.00014999,2]
[425853488,1782001834000,-500.0,0.00014999,2]
[425853490,1782001834000,-301.0,0.00015,5]
[425853492,1782001834000,-279.06598759,0.00015,2]
[425853493,1782001834000,-225.15,0.00015068,2]
[425853491,1782001834000,-910069.57090172,0.00015,2]
[425853494,1782001834000,-266.94170648,0.00015152,7]
[425853496,1782001834000,-6438.24337039,0.00015768,2]
[425853495,1782001834000,-654.47,0.00015489,2]
[425853498,1782001834000,-173.07,0.00015916,2]
[425853499,1782001834000,-183.0,0.00016,2]
[425853497,1782001834000,-150.0,0.000159,2]
[425853500,1782001834000,-300.0,0.00016,2]
[425853531,1782001834000,-1583.56008258,0.000179,2]
[425853529,1782001834000,-1583.56008258,0.000178,2]
[425853574,1782001834000,-400.0,0.0002,2]
[425853563,1782001834000,-500.0,0.00019178,2]
[425853565,1782001834000,-500.0,0.00019178,2]
[425853567,1782001834000,-1583.56008258,0.000192,2]
[425853564,1782001834000,-500.0,0.00019178,2]
[425853566,1782001834000,-170.33959613,0.00019178,2]
[425853570,1782001834000,-3861.10401704,0.00019787,2]
[425853571,1782001834000,-500.0,0.000198,2]
[425853569,1782001834000,-6438.24337039,0.00019527,2]
[425853573,1782001834000,-364.0,0.0002,2]
[425853572,1782001834000,-184.12417584,0.0002,2]
[425853575,1782001834000,-152.0,0.0002,2]
[425853577,1782001834000,-159.0,0.0002,2]
[425853578,1782001834000,-458.0,0.0002,2]
[425853579,1782001834000,-473.0,0.0002,2]
[425853576,1782001834000,-196.643002,0.0002,2]
[425853580,1782001834000,-159.41900411,0.0002,2]
[425853582,1782001834000,-152.0,0.0002,2]
[425853581,1782001834000,-510.0,0.0002,2]
[425853583,1782001834000,-500.0,0.0002,2]
[425853584,1782001834000,-500.0,0.0002,2]
[425853586,1782001834000,-500.0,0.0002,2]
[425853585,1782001834000,-500.0,0.0002,2]
[425853587,1782001834000,-500.0,0.0002,2]
[425853588,1782001834000,-500.0,0.0002,2]
[425853533,1782001834000,-977.15806802,0.00018,2]
[425853558,1782001834000,-383.0,0.00019066,2]
[425853560,1782001834000,-6081.0,0.00019066,2]
[425853568,1782001834000,-247.0,0.00019452,2]
[425853561,1782001834000,-1973.41,0.00019078,2]
[425853532,1782001834000,-399.99999999,0.000179,2]
[425853534,1782001834000,-660.94540577,0.00018,2]
[425853535,1782001834000,-350.0,0.00018,2]
[425853536,1782001834000,-262.246535,0.00018086,2]
[425853537,1782001834000,-1583.56008258,0.000181,2]
[425853538,1782001834000,-399.99999999,0.000181,2]
[425853540,1782001834000,-660.94540577,0.000182,2]
[425853539,1782001834000,-977.15806802,0.000182,2]
[425853562,1782001834000,-173.07,0.000191,2]
[425853543,1782001834000,-977.15806802,0.000184,2]
[425853544,1782001834000,-660.94540577,0.000184,2]
[425853542,1782001834000,-399.99999999,0.000183,2]
[425853546,1782001834000,-977.15806802,0.000185,2]
[425853545,1782001834000,-49644.46702934,0.00018456,2]
[425853541,1782001834000,-1583.56008258,0.000183,2]
[425853548,1782001834000,-660.94540577,0.000185,2]
[425853559,1782001834000,-1229.0,0.00019066,2]
[425853556,1782001834000,-200.0,0.00019054,2]
[425853557,1782001834000,-1360.0,0.00019066,2]
[425853554,1782001834000,-1371.62970308,0.00019,2]
[425853551,1782001834000,-660.94540577,0.000187,2]
[425853555,1782001834000,-1583.56008258,0.00019,2]
[425853553,1782001834000,-654.47,0.00018931,2]
[425853550,1782001834000,-1583.56008258,0.000187,2]
[425853552,1782001834000,-1583.56008258,0.000188,2]
[425853547,1782001834000,-1583.56008258,0.000185,2]
[425853549,1782001834000,-977.15806802,0.000187,2]
[425853635,1782001835000,-500.0,0.00021112,2]
[425853628,1782001835000,-578.20924308,0.00021112,2]
[425853632,1782001835000,-151.0,0.00021112,2]
[425853630,1782001835000,-151.0,0.00021112,2]
[425853629,1782001835000,-151.0,0.00021112,2]
[425853627,1782001835000,-151.0,0.00021112,2]
[425853622,1782001835000,-4008.8907924,0.00021018,2]
[425853624,1782001835000,-200.0,0.00021112,2]
[425853625,1782001835000,-151.0,0.00021112,2]
[425853623,1782001835000,-151.0,0.00021112,2]
[425853620,1782001835000,-500.0,0.00021018,2]
[425853631,1782001835000,-151.0,0.00021112,2]
[425853626,1782001835000,-151.0,0.00021112,2]
[425853634,1782001835000,-354.50310776,0.00021112,2]
[425853647,1782001835000,-151.0,0.00021112,2]
[425853637,1782001835000,-151.0,0.00021112,2]
[425853636,1782001835000,-500.0,0.00021112,2]
[425853638,1782001835000,-500.0,0.00021112,2]
[425853639,1782001835000,-151.0,0.00021112,2]
[425853640,1782001835000,-500.0,0.00021112,2]
[425853641,1782001835000,-151.0,0.00021112,2]
[425853642,1782001835000,-500.0,0.00021112,2]
[425853645,1782001835000,-151.0,0.00021112,2]
[425853646,1782001835000,-500.0,0.00021112,2]
[425853648,1782001835000,-500.0,0.00021112,2]
[425853644,1782001835000,-500.0,0.00021112,2]
[425853643,1782001835000,-151.0,0.00021112,2]
[425853621,1782001835000,-207628.3328867,0.00021018,2]
[425853633,1782001835000,-151.0,0.00021112,2]
[425853618,1782001835000,-500.0,0.00021018,2]